fUSD/lending_fUSD_20250515
["ID","MTS","AMOUNT","RATE_DAILY","PERIOD"]
[361163450,1747313447684,-356.93837621,0.0001319,2]
[361163451,1747313447695,-400.0,0.0001319,2]
[361163452,1747313447704,-160.71237198,0.0001319,2]
[361163453,1747313447730,-239.28762802,0.0001319,2]
[361163454,1747313447740,-400.0,0.0001319,2]
[361163455,1747313447749,-308.44183198,0.0001319,2]
[361163456,1747313447809,-186.00122054,0.0001319,2]
[361163457,1747313447823,-400.0,0.0001319,2]
[361163458,1747313447832,-516.8509503,0.0001319,2]
[361163459,1747313447842,-400.0,0.0001319,2]
[361163460,1747313447851,-400.0,0.0001319,2]
[361163461,1747313447862,-400.0,0.0001319,2]
[361163462,1747313447873,-400.0,0.0001319,2]
[361163463,1747313447882,-400.0,0.0001319,2]
[361163464,1747313447894,-400.0,0.0001319,2]
[361163465,1747313447905,-400.0,0.0001319,2]
[361163466,1747313447915,-484.87190181,0.0001319,2]
[361163467,1747313447927,-980.96809819,0.0001319,2]
[361163468,1747313447936,-868.58,0.0001319,2]
[361163469,1747313447946,-400.0,0.0001319,2]
[361163470,1747313447955,-400.0,0.0001319,2]
[361163471,1747313447964,-400.0,0.0001319,2]
[361163472,1747313447974,-400.0,0.0001319,2]
[361163473,1747313447983,-400.0,0.0001319,2]
[361163474,1747313447993,-400.0,0.0001319,2]
[361163475,1747313448003,-542.97,0.0001319,2]
[361163476,1747313448012,-400.0,0.0001319,2]
[361163477,1747313448022,-400.0,0.0001319,2]
[361163478,1747313448031,-400.0,0.0001319,2]
[361163479,1747313448041,-691.58,0.0001319,2]
[361163480,1747313448052,-400.0,0.0001319,2]
[361163481,1747313448062,-400.0,0.0001319,2]
[361163482,1747313448071,-1067.32,0.0001319,2]
[361163483,1747313448081,-400.0,0.0001319,2]
[361163484,1747313448091,-241.02010565,0.0001319,2]
[361163485,1747313448450,-0.00226109,0.0001319,2]
[361163486,1747313448462,-398.30763326,0.0001319,2]
[361163487,1747313448472,-400.0,0.0001319,2]
[361163488,1747313448481,-1162.15,0.0001319,2]
[361163489,1747313448491,-400.0,0.0001319,2]
[361163490,1747313448500,-439.88,0.0001319,2]
[361163491,1747313448510,-430.27,0.0001319,2]
[361163492,1747313448519,-468.30644193,0.0001319,2]
[361163493,1747313448529,-400.0,0.0001319,2]
[361163494,1747313448538,-673.57,0.0001319,2]
[361163495,1747313448547,-400.0,0.0001319,2]
[361163496,1747313448562,-400.0,0.0001319,2]
[361163497,1747313448572,-569.02,0.0001319,2]
[361163498,1747313448582,-593.6,0.0001319,2]
[361163499,1747313448591,-606.7,0.0001319,2]
[361163500,1747313448602,-400.0,0.0001319,2]
[361163501,1747313448612,-400.0,0.0001319,2]
[361163502,1747313448621,-400.0,0.0001319,2]
[361163503,1747313448630,-400.0,0.0001319,2]
[361163504,1747313448640,-400.0,0.0001319,2]
[361163505,1747313448651,-97.53263376,0.0001319,2]
[361163506,1747313448663,-658.14736624,0.0001319,2]
[361163507,1747313448673,-400.0,0.0001319,2]
[361163508,1747313448683,-400.0,0.0001319,2]
[361163509,1747313448694,-475.62,0.0001319,2]
[361163510,1747313448704,-1121.11,0.0001319,2]
[361163511,1747313448714,-400.0,0.0001319,2]
[361163512,1747313448724,-400.0,0.0001319,2]
[361163513,1747313448735,-400.0,0.0001319,2]
[361163514,1747313448744,-400.0,0.0001319,2]
[361163515,1747313448754,-515.82,0.0001319,2]
[361163516,1747313448764,-400.0,0.0001319,2]
[361163517,1747313448774,-400.0,0.0001319,2]
[361163518,1747313448784,-2413.06,0.0001319,2]
[361163519,1747313448794,-1083.64,0.0001319,2]
[361163520,1747313448806,-846.83884887,0.0001319,2]
[361163521,1747313449019,-210.57115113,0.0001319,2]
[361163522,1747313449030,-252.36336116,0.0001319,2]
[361163523,1747313449040,-5427.01,0.0001319,2]
[361163524,1747313449050,-400.0,0.0001319,2]
[361163525,1747313449062,-549.19,0.0001319,2]
[361163526,1747313449072,-400.0,0.0001319,2]
[361163527,1747313449082,-400.0,0.0001319,2]
[361163528,1747313449091,-400.0,0.0001319,2]
[361163529,1747313449101,-400.0,0.0001319,2]
[361163530,1747313449112,-400.0,0.0001319,2]
[361163531,1747313449120,-1023.48877734,0.0001319,2]
[361163532,1747313449143,-850.0,0.0001319,2]
[361163533,1747313449155,-4360.77113422,0.0001319,2]
[361163534,1747313449202,-169.83211212,0.00012641,2]
[361163535,1747313449212,-12855.99008844,0.0001319,2]
[361163536,1747313449223,-400.0,0.0001319,2]
[361163537,1747313449233,-400.0,0.0001319,2]
[361163538,1747313449243,-400.0,0.0001319,2]
[361163539,1747313449253,-400.0,0.0001319,2]
[361163540,1747313449263,-424.62,0.0001319,2]
[361163541,1747313449273,-400.0,0.0001319,2]
[361163542,1747313449283,-400.0,0.0001319,2]
[361163543,1747313449293,-400.0,0.0001319,2]
[361163544,1747313449305,-400.0,0.00013191,2]
[361163545,1747313449315,-400.0,0.00013191,2]
[361163546,1747313449325,-400.0,0.00013191,2]
[361163547,1747313449335,-400.0,0.00013191,2]
[361163548,1747313449345,-400.0,0.00013191,2]
[361163549,1747313449355,-400.0,0.00013191,2]
[361163550,1747313449364,-475.20349515,0.00013191,2]
[361163551,1747313449374,-400.0,0.00013191,2]
[361163552,1747313449384,-400.0,0.00013191,2]
[361163553,1747313449393,-400.0,0.00013191,2]
[361163554,1747313449403,-400.0,0.00013191,2]
[361163555,1747313449413,-400.0,0.00013191,2]
[361163556,1747313449423,-400.0,0.00013191,2]
[361163557,1747313449432,-400.0,0.00013191,2]
[361163558,1747313449442,-400.0,0.00013191,2]
[361163559,1747313449452,-400.0,0.00013191,2]
[361163560,1747313449463,-400.0,0.00013191,2]
[361163561,1747313449472,-400.0,0.00013191,2]
[361163562,1747313449482,-400.0,0.00013191,2]
[361163563,1747313449491,-400.0,0.00013191,2]
[361163564,1747313449500,-434.05,0.00013191,2]
[361163565,1747313449510,-443.65187655,0.00013324,2]
[361163566,1747313449520,-400.0,0.00013324,2]
[361163567,1747313449530,-400.0,0.00013324,2]
[361163568,1747313449539,-400.0,0.00013324,2]
[361163569,1747313449548,-400.0,0.00013324,2]
[361163570,1747313449560,-400.0,0.00013324,2]
[361163571,1747313449570,-400.0,0.00013324,2]
[361163572,1747313449580,-400.0,0.00013324,2]
[361163573,1747313449590,-400.0,0.00013324,2]
[361163574,1747313449599,-858.58,0.00013324,2]
[361163575,1747313449613,-400.0,0.00013324,2]
[361163576,1747313449622,-400.0,0.00013324,2]
[361163577,1747313449633,-400.0,0.00013324,2]
[361163578,1747313449643,-400.0,0.00013324,2]
[361163579,1747313449652,-400.0,0.00013324,2]
[361163580,1747313449663,-400.0,0.00013324,2]
[361163581,1747313449672,-400.0,0.00013324,2]
[361163582,1747313449681,-400.0,0.00013324,2]
[361163583,1747313449691,-400.0,0.00013324,2]
[361163584,1747313449702,-400.0,0.00013324,2]
[361163585,1747313449712,-400.0,0.00013324,2]
[361163586,1747313449722,-400.0,0.00013324,2]
[361163587,1747313449731,-400.30378989,0.00013324,2]
[361163588,1747313449741,-400.0,0.00013324,2]
[361163589,1747313449752,-479.2,0.00013324,2]
[361163590,1747313449762,-400.0,0.00013324,2]
[361163591,1747313449772,-400.0,0.00013324,2]
[361163592,1747313449781,-675.32,0.00013324,2]
[361163593,1747313449791,-400.0,0.00013324,2]
[361163594,1747313449801,-400.0,0.00013324,2]
[361163595,1747313449811,-400.0,0.00013324,2]
[361163596,1747313449824,-207.8114804,0.00013364,2]
[361163597,1747313449834,-2175.62,0.00013424,2]
[361163598,1747313449844,-2175.62,0.00013424,2]
[361163599,1747313449854,-2175.62,0.00013424,2]
[361163600,1747313449864,-2175.62,0.00013424,2]
[361163601,1747313449874,-2175.62,0.00013424,2]
[361163602,1747313449884,-2175.62,0.00013424,2]
[361163603,1747313449894,-2175.62,0.00013424,2]
[361163604,1747313449904,-400.0,0.00013463,2]
[361163605,1747313449913,-400.0,0.00013463,2]
[361163606,1747313449923,-400.0,0.00013463,2]
[361163607,1747313449932,-704.53,0.00013463,2]
[361163608,1747313449942,-400.0,0.00013463,2]
[361163609,1747313449951,-400.0,0.00013463,2]
[361163610,1747313449961,-497.55,0.00013463,2]
[361163611,1747313449970,-747.25,0.00013463,2]
[361163612,1747313449979,-440.77,0.00013463,2]
[361163613,1747313449989,-400.0,0.00013463,2]
[361163614,1747313449999,-400.0,0.00013463,2]
[361163615,1747313450009,-400.0,0.00013463,2]
[361163616,1747313450018,-400.0,0.00013463,2]
[361163617,1747313450028,-400.0,0.00013464,2]
[361163618,1747313450038,-400.0,0.00013464,2]
[361163619,1747313450047,-400.0,0.00013464,2]
[361163620,1747313450058,-400.0,0.00013464,2]
[361163621,1747313450067,-400.0,0.00013464,2]
[361163622,1747313450077,-362.26982041,0.00013464,2]
[361163623,1747313450087,-440.89923939,0.00013464,2]
[361163624,1747313450096,-544.27342972,0.00013464,2]
[361163625,1747313450105,-400.0,0.00013464,2]
[361163626,1747313450115,-400.0,0.00013464,2]
[361163627,1747313450124,-400.0,0.00013464,2]
[361163628,1747313450133,-400.0,0.00013464,2]
[361163629,1747313450143,-400.0,0.00013464,2]
[361163630,1747313450152,-400.0,0.00013464,2]
[361163631,1747313450162,-400.0,0.00013464,2]
[361163632,1747313450175,-400.0,0.00013464,2]
[361163633,1747313450184,-1465.84,0.00013464,2]
[361163634,1747313450193,-868.58,0.00013464,2]
[361163635,1747313450203,-473.02467567,0.00013464,2]
[361163636,1747313450212,-400.0,0.00013464,2]
[361163637,1747313450222,-400.0,0.00013464,2]
[361163638,1747313450231,-400.0,0.00013464,2]
[361163639,1747313450241,-400.0,0.00013464,2]
[361163640,1747313450251,-400.0,0.00013464,2]
[361163641,1747313450261,-542.97,0.00013464,2]
[361163642,1747313450271,-400.0,0.00013464,2]
[361163643,1747313450281,-400.0,0.00013464,2]
[361163644,1747313450291,-400.0,0.00013464,2]
[361163645,1747313450301,-691.58,0.00013464,2]
[361163646,1747313450311,-400.0,0.00013464,2]
[361163647,1747313450321,-400.0,0.00013464,2]
[361163648,1747313450330,-1067.32,0.00013464,2]
[361163649,1747313450339,-400.0,0.00013464,2]
[361163650,1747313450349,-639.33,0.00013464,2]
[361163651,1747313450358,-400.0,0.00013464,2]
[361163652,1747313450368,-1162.15,0.00013464,2]
[361163653,1747313450377,-400.0,0.00013464,2]
[361163654,1747313450387,-439.88,0.00013464,2]
[361163655,1747313450396,-430.27,0.00013464,2]
[361163656,1747313450405,-400.0,0.00013464,2]
[361163657,1747313450414,-673.57,0.00013464,2]
[361163658,1747313450423,-400.0,0.00013464,2]
[361163659,1747313450432,-400.0,0.00013464,2]
[361163660,1747313450442,-569.02,0.00013464,2]
[361163661,1747313450451,-593.6,0.00013464,2]
[361163662,1747313450460,-606.7,0.00013464,2]
[361163663,1747313450470,-400.0,0.00013464,2]
[361163664,1747313450479,-400.0,0.00013464,2]
[361163665,1747313450488,-400.0,0.00013464,2]
[361163666,1747313450498,-400.0,0.00013464,2]
[361163667,1747313450507,-400.0,0.00013464,2]
[361163668,1747313450517,-755.68,0.00013464,2]
[361163669,1747313450527,-400.0,0.00013464,2]
[361163670,1747313450537,-400.0,0.00013464,2]
[361163671,1747313450547,-475.62,0.00013464,2]
[361163672,1747313450559,-1121.11,0.00013464,2]
[361163673,1747313450569,-400.0,0.00013464,2]
[361163674,1747313450579,-400.0,0.00013464,2]
[361163675,1747313450589,-305.60874743,0.00013464,2]
[361163676,1747313450599,-400.0,0.00013464,2]
[361163677,1747313450609,-515.82,0.00013464,2]
[361163678,1747313450619,-400.0,0.00013464,2]
[361163679,1747313450628,-400.0,0.00013464,2]
[361163680,1747313450638,-2413.06,0.00013464,2]
[361163681,1747313450647,-1083.64,0.00013464,2]
[361163682,1747313450656,-1057.41,0.00013464,2]
[361163683,1747313450666,-5427.01,0.00013464,2]
[361163684,1747313450676,-399.93307483,0.00013464,2]
[361163685,1747313450686,-549.19,0.00013464,2]
[361163686,1747313450696,-400.0,0.00013464,2]
[361163687,1747313450705,-138.37698165,0.00013464,2]
[361163688,1747313450747,-261.62301835,0.00013464,2]
[361163689,1747313450757,-400.0,0.00013464,2]
[361163690,1747313450766,-400.0,0.00013464,2]
[361163691,1747313450775,-400.0,0.00013464,2]
[361163692,1747313450786,-11456.35981225,0.00013464,2]
[361163693,1747313451615,-178.08404099,0.00012641,2]
[361163694,1747313451625,-1781.2008117,0.00013464,2]
[361163695,1747313451638,-3888.2233,0.00013464,2]
[361163696,1747313451663,-1964.46607605,0.00013464,2]
[361163697,1747313451673,-400.0,0.00013464,2]
[361163698,1747313451683,-400.0,0.00013464,2]
[361163699,1747313451694,-400.0,0.00013464,2]
[361163700,1747313451704,-400.0,0.00013464,2]
[361163701,1747313451714,-424.62,0.00013464,2]
[361163702,1747313451725,-400.0,0.00013464,2]
[361163703,1747313451736,-400.0,0.00013464,2]
[361163704,1747313451746,-400.0,0.00013464,2]
[361163705,1747313451755,-673.0,0.00013465,2]
[361163706,1747313451765,-400.0,0.00013465,2]
[361163707,1747313451775,-400.0,0.00013465,2]
[361163708,1747313451785,-400.0,0.00013465,2]
[361163709,1747313451794,-400.0,0.00013465,2]
[361163710,1747313451807,-400.0,0.00013465,2]
[361163711,1747313451819,-400.0,0.00013465,2]
[361163712,1747313451829,-181.93947637,0.00013465,2]
[361163713,1747313451839,-400.0,0.00013465,2]
[361163714,1747313451849,-400.0,0.00013465,2]
[361163715,1747313451859,-400.0,0.00013465,2]
[361163716,1747313451869,-224.10404854,0.00013465,2]
[361163717,1747313451881,-175.89595146,0.00013465,2]
[361163718,1747313451891,-400.0,0.00013465,2]
[361163719,1747313451901,-400.0,0.00013465,2]
[361163720,1747313451912,-400.0,0.00013465,2]
[361163721,1747313451923,-400.0,0.00013465,2]
[361163722,1747313451932,-400.0,0.00013465,2]
[361163723,1747313451942,-434.77521138,0.00013465,2]
[361163724,1747313451953,-400.0,0.00013465,2]
[361163725,1747313451963,-400.0,0.00013465,2]
[361163726,1747313451973,-434.05,0.00013465,2]
[361163727,1747313451983,-531.39,0.00013497,2]
[361163728,1747313451993,-400.0,0.00013598,2]
[361163729,1747313452003,-533.77856563,0.00013598,2]
[361163730,1747313452012,-400.0,0.00013598,2]
[361163731,1747313452022,-286.40862358,0.00013598,2]
[361163732,1747313452032,-400.0,0.00013598,2]
[361163733,1747313452042,-400.0,0.00013598,2]
[361163734,1747313452054,-858.58,0.00013598,2]
[361163735,1747313452065,-400.0,0.00013598,2]
[361163736,1747313452075,-400.0,0.00013598,2]
[361163737,1747313452085,-277.15913629,0.00013598,2]
[361163738,1747313452095,-400.0,0.00013598,2]
[361163739,1747313452104,-400.0,0.00013598,2]
[361163740,1747313452114,-460.93318962,0.00013598,2]
[361163741,1747313452124,-400.0,0.00013598,2]
[361163742,1747313452134,-400.0,0.00013598,2]
[361163743,1747313452144,-400.0,0.00013598,2]
[361163744,1747313452154,-400.0,0.00013598,2]
[361163745,1747313452164,-400.0,0.00013598,2]
[361163746,1747313452174,-400.0,0.00013598,2]
[361163747,1747313452185,-400.0,0.00013598,2]
[361163748,1747313452195,-479.2,0.00013598,2]
[361163749,1747313452206,-2175.62,0.00013598,2]
[361163750,1747313452217,-400.0,0.00013598,2]
[361163751,1747313452227,-400.0,0.00013598,2]
[361163752,1747313452238,-675.32,0.00013598,2]
[361163753,1747313452249,-400.0,0.00013598,2]
[361163754,1747313452260,-400.0,0.00013598,2]
[361163755,1747313452271,-400.0,0.00013598,2]
[361163756,1747313452282,-376.18748788,0.00013599,2]
[361163757,1747313452293,-605.48927581,0.00013649,2]
[361163758,1747313452339,-394.51072419,0.00013649,2]
[361163759,1747313452349,-2085.446,0.00013698,2]
[361163760,1747313452360,-754.43,0.00013698,2]
[361163761,1747313452370,-400.0,0.00013698,2]
[361163762,1747313452380,-400.0,0.00013698,2]
[361163763,1747313452390,-400.0,0.00013698,2]
[361163764,1747313452400,-400.0,0.00013698,2]
[361163765,1747313452410,-400.0,0.00013698,2]
[361163766,1747313452420,-400.0,0.00013698,2]
[361163767,1747313452430,-400.0,0.00013698,2]
[361163768,1747313452440,-400.0,0.00013698,2]
[361163769,1747313452451,-400.0,0.00013698,2]
[361163770,1747313452460,-400.0,0.00013698,2]
[361163771,1747313452477,-5194.9,0.00013699,2]
[361163772,1747313452488,-5194.9,0.00013699,2]
[361163773,1747313452499,-5194.9,0.00013699,2]
[361163774,1747313452509,-5194.9,0.00013699,2]
[361163775,1747313452519,-5194.9,0.00013699,2]
[361163776,1747313452529,-5194.9,0.00013699,2]
[361163777,1747313452539,-5194.9,0.00013699,2]
[361163778,1747313452549,-5194.9,0.00013699,2]
[361163779,1747313452562,-5194.9,0.00013699,2]
[361163780,1747313452572,-5194.9,0.00013699,2]
[361163781,1747313452582,-5194.9,0.00013699,2]
[361163782,1747313452592,-5194.9,0.00013699,2]
[361163783,1747313452602,-5194.9,0.00013699,2]
[361163784,1747313452613,-5194.9,0.00013699,2]
[361163785,1747313452623,-5194.9,0.00013699,2]
[361163786,1747313452633,-5194.9,0.00013699,2]
[361163787,1747313452643,-5194.9,0.00013699,2]
[361163788,1747313452655,-5194.9,0.00013699,2]
[361163789,1747313452665,-5194.9,0.00013699,2]
[361163790,1747313452677,-5194.99391736,0.00013699,2]
[361163791,1747313452688,-1000.0,0.00013699,2]
[361163792,1747313452698,-200.0,0.00013699,2]
[361163793,1747313452708,-500.0,0.00013699,2]
[361163794,1747313452718,-500.0,0.00013699,2]
[361163795,1747313452729,-500.0,0.00013699,2]
[361163796,1747313452739,-348.37679336,0.00013699,2]
[361163797,1747313452748,-411.1318828,0.00013728,2]
[361163798,1747313452758,-489.41541966,0.00013737,2]
[361163799,1747313452768,-400.0,0.00013737,2]
[361163800,1747313452779,-400.0,0.00013737,2]
[361163801,1747313452789,-704.53,0.00013737,2]
[361163802,1747313452799,-400.0,0.00013737,2]
[361163803,1747313452813,-415.02111859,0.00013737,2]
[361163804,1747313452827,-497.55,0.00013737,2]
[361163805,1747313452839,-264.30378288,0.00013737,2]
[361163806,1747313452860,-482.94621712,0.00013737,2]
[361163807,1747313452871,-440.77,0.00013737,2]
[361163808,1747313452880,-400.0,0.00013737,2]
[361163809,1747313452891,-400.0,0.00013737,2]
[361163810,1747313452902,-400.0,0.00013737,2]
[361163811,1747313452913,-400.0,0.00013737,2]
[361163812,1747313452923,-400.0,0.00013738,2]
[361163813,1747313452933,-400.0,0.00013738,2]
[361163814,1747313452943,-400.0,0.00013738,2]
[361163815,1747313452954,-400.0,0.00013738,2]
[361163816,1747313452964,-308.15819597,0.00013738,2]
[361163817,1747313452973,-400.0,0.00013738,2]
[361163818,1747313452983,-400.0,0.00013738,2]
[361163819,1747313452993,-400.0,0.00013738,2]
[361163820,1747313453003,-454.95491244,0.00013738,2]
[361163821,1747313453013,-400.0,0.00013738,2]
[361163822,1747313453023,-400.0,0.00013738,2]
[361163823,1747313453033,-400.0,0.00013738,2]
[361163824,1747313453042,-400.0,0.00013738,2]
[361163825,1747313453052,-981.97067447,0.00013738,2]
[361163826,1747313453066,-261.81012156,0.00013738,2]
[361164564,1747313601487,500.0,0.00025286,120]
[361164565,1747313601955,557.255537,0.00027286,120]
[361164566,1747313678387,150.0,0.00013,5]
[361164567,1747313748923,166.96,9.371e-05,2]
[361164569,1747313952004,509.56,9.649e-05,2]
[361164570,1747314155783,2513.14,9.905e-05,2]
[361164572,1747314197488,-179.65719204,0.00010775,2]
[361164573,1747314201018,-20.64856175,0.00010775,2]
[361164574,1747314202492,500.0,0.00026876,120]
[361164576,1747314223135,151.1,0.00021945,30]
[361164586,1747314631644,-150.0,0.00011545,2]
[361164587,1747314631655,-300.0,0.00011545,2]
[361164588,1747314631665,-1200.0,0.00011545,2]
[361164589,1747314631675,-400.0,0.00011546,2]
[361164590,1747314631685,-400.0,0.00011546,2]
[361164591,1747314631695,-478.55302866,0.00011546,2]
[361164592,1747314631705,-521.13568043,0.00011546,2]
[361164593,1747314631718,-400.0,0.00011546,2]
[361164594,1747314631728,-538.56096648,0.00011546,2]
[361164595,1747314631739,-400.85408625,0.00011546,2]
[361164596,1747314631749,-400.0,0.00011546,2]
[361164597,1747314631759,-257.26166671,0.00011546,2]
[361164598,1747314631768,-400.0,0.00011546,2]
[361164599,1747314631778,-406.77566497,0.00011546,2]
[361164600,1747314631788,-400.0,0.00011546,2]
[361164601,1747314631798,-400.0,0.00011546,2]
[361164602,1747314631807,-400.0,0.00011546,2]
[361164603,1747314631817,-400.0,0.00011546,2]
[361164604,1747314631827,-400.0,0.00011546,2]
[361164605,1747314631836,-400.0,0.00011546,2]
[361164606,1747314631846,-400.0,0.00011546,2]
[361164607,1747314631856,-420.72,0.00011546,2]
[361164608,1747314631867,-405.94622774,0.00011546,2]
[361164609,1747314631876,-400.0,0.00011546,2]
[361164610,1747314631887,-400.0,0.00011546,2]
[361164611,1747314631897,-315.6331327,0.00011546,2]
[361164612,1747314631907,-400.0,0.00011546,2]
[361164614,1747314631917,-64.335683,0.00011546,2]
[361164896,1747314637389,-335.664317,0.00011546,2]
[361164897,1747314637398,-400.0,0.00011546,2]
[361164898,1747314637408,-464.74,0.00011546,2]
[361164899,1747314637417,-400.0,0.00011546,2]
[361164900,1747314637427,-269.41274174,0.00011546,2]
[361164901,1747314637445,-130.58725826,0.00011546,2]
[361164902,1747314637455,-400.0,0.00011546,2]
[361164903,1747314637465,-400.0,0.00011546,2]
[361164904,1747314637474,-213.86094442,0.00011546,2]
[361164905,1747314637504,-186.13905558,0.00011546,2]
[361164906,1747314637515,-400.0,0.00011546,2]
[361164907,1747314637525,-400.0,0.00011546,2]
[361164908,1747314637535,-400.0,0.00011546,2]
[361164909,1747314637545,-400.0,0.00011546,2]
[361164910,1747314637555,-400.0,0.00011546,2]
[361164911,1747314637565,-184.40037269,0.00011546,2]
[361164912,1747314637575,-492.69373432,0.00011546,2]
[361164913,1747314637585,-400.0,0.00011546,2]
[361164914,1747314637595,-239.82913319,0.00011546,2]
[361164915,1747314637605,-219.33621148,0.00011546,2]
[361164916,1747314637614,-1000.0,0.00011693,2]
[361164917,1747314637624,-200.0,0.00011731,2]
[361164918,1747314637633,-400.0,0.00011819,2]
[361164919,1747314637643,-400.0,0.0001182,2]
[361164920,1747314637653,-400.0,0.0001182,2]
[361164921,1747314637662,-400.0,0.0001182,2]
[361164922,1747314637673,-509.56,0.00011913,2]
[361164923,1747314637682,-1585.6747,0.00011994,2]
[361164924,1747314637692,-403.68059289,0.00012093,2]
[361164925,1747314637701,-400.0,0.00012094,2]
[361164926,1747314637711,-400.0,0.00012094,2]
[361164927,1747314637721,-400.0,0.00012094,2]
[361164928,1747314637730,-879.0,0.000121,2]
[361164929,1747314637740,-153.0,0.000121,2]
[361164930,1747314637750,-799.0,0.00012188,2]
[361164931,1747314637759,-200.0,0.000122,4]
[361164932,1747314637768,-500.0,0.000123,4]
[361164933,1747314637778,-400.0,0.00012368,2]
[361164934,1747314637788,-400.0,0.00012368,2]
[361164935,1747314637797,-400.0,0.00012368,2]
[361164936,1747314637811,-800.0,0.000124,4]
[361164937,1747314637825,-1100.0,0.000125,4]
[361164938,1747314637835,-700.0,0.000126,2]
[361164939,1747314637844,-1400.0,0.000126,4]
[361164940,1747314637854,-400.0,0.00012639,2]
[361164941,1747314637863,-403.80332319,0.00012639,2]
[361164942,1747314637875,-316.78400333,0.00012639,2]
[361164943,1747314637886,-400.0,0.00012639,2]
[361164944,1747314637895,-400.0,0.00012639,2]
[361164945,1747314637904,-400.0,0.00012639,2]
[361164946,1747314637915,-400.0,0.00012639,2]
[361164947,1747314637926,-400.0,0.00012639,2]
[361164948,1747314637935,-400.0,0.00012639,2]
[361164949,1747314637945,-400.0,0.00012639,2]
[361164950,1747314637954,-293.97406199,0.00012639,2]
[361164951,1747314637964,-400.0,0.00012639,2]
[361164952,1747314637975,-191.19712819,0.00012639,2]
[361164953,1747314637994,-208.80287181,0.00012639,2]
[361164954,1747314638004,-400.0,0.00012639,2]
[361164955,1747314638014,-400.0,0.00012639,2]
[361164956,1747314638025,-42.94563275,0.00012639,2]
[361164957,1747314638045,-179.98570775,0.00012639,2]
[361164958,1747314638056,-400.0,0.00012639,2]
[361164959,1747314638066,-400.0,0.00012639,2]
[361164960,1747314638076,-139.02663312,0.00012639,2]
[361164961,1747314638088,-260.97336688,0.00012639,2]
[361164962,1747314638097,-400.0,0.00012639,2]
[361164963,1747314638107,-400.0,0.00012639,2]
[361164964,1747314638117,-400.0,0.00012639,2]
[361164965,1747314638127,-7.89965581,0.00012639,2]
[361164967,1747314639563,-392.10034419,0.00012639,2]
[361164968,1747314639574,-400.0,0.00012639,2]
[361164969,1747314639584,-400.0,0.00012639,2]
[361164970,1747314639594,-400.0,0.00012639,2]
[361164971,1747314639603,-400.0,0.00012639,2]
[361164972,1747314639613,-400.0,0.00012639,2]
[361164973,1747314639623,-71.42951559,0.00012639,2]
[361164974,1747314639728,-294.21663045,0.00012639,2]
[361164975,1747314639738,-205.02224682,0.00012639,2]
[361164976,1747314639749,-194.97775318,0.00012639,2]
[361164977,1747314639758,-400.0,0.00012639,2]
[361164978,1747314639768,-400.0,0.00012639,2]
[361164979,1747314639778,-31.61259102,0.00012639,2]
[361164980,1747314639790,-368.38740898,0.00012639,2]
[361164981,1747314639800,-400.0,0.00012639,2]